[Event "*** Titled Tuesday Blitz"]
[Site "Chess.com"]
[Date "2020.05.19"]
[Round "7"]
[White "SameerMujumdar"]
[Black "Robert_Chessmood"]
[Result "0-1"]
[WhiteElo "2287"]
[BlackElo "2886"]
[TimeControl "180+1"]
[EndTime "13:21:08 PDT"]
[Termination "Robert_Chessmood won by resignation"]

1. e4 {[%clk 0:03:00.9]} 1... c6 {[%clk 0:03:00.9]} 2. d4 {[%clk 0:02:58.3]}
2... d5 {[%clk 0:02:58.3]} 3. exd5 {[%clk 0:02:58.2]} 3... cxd5 {[%clk
0:02:58.1]} 4. Bd3 {[%clk 0:02:58.3]} 4... Nc6 {[%clk 0:02:58]} 5. c3 {[%clk
0:02:58.3]} 5... Qc7 {[%clk 0:02:58.5]} 6. Ne2 {[%clk 0:02:56.6]} 6... Bg4
{[%clk 0:02:56.9]} 7. f3 {[%clk 0:02:55.4]} 7... Bd7 {[%clk 0:02:56.5]} 8. Bf4
{[%clk 0:02:54.1]} 8... e5 {[%clk 0:02:56.9]} 9. Bg3 {[%clk 0:02:53.1]} 9... Bd6
{[%clk 0:02:53.7]} 10. dxe5 {[%clk 0:02:50.5]} 10... Nxe5 {[%clk 0:02:53.8]} 11.
O-O {[%clk 0:02:46.4]} 11... Nf6 {[%clk 0:02:54]} 12. Nd4 {[%clk 0:02:41.2]}
12... O-O {[%clk 0:02:51.8]} 13. Bf5 {[%clk 0:02:22.2]} 13... Nc4 {[%clk
0:02:45.6]} 14. Bxd6 {[%clk 0:02:17.7]} 14... Qxd6 {[%clk 0:02:42.3]} 15. Qc1
{[%clk 0:02:02.6]} 15... Rfe8 {[%clk 0:02:37.9]} 16. Bxd7 {[%clk 0:01:59.1]}
16... Qxd7 {[%clk 0:02:38.1]} 17. b3 {[%clk 0:01:55.6]} 17... Ne3 {[%clk
0:02:35.9]} 18. Re1 {[%clk 0:01:55.7]} 18... Nf5 {[%clk 0:02:35.6]} 19. Qd2
{[%clk 0:01:53.7]} 19... Rxe1+ {[%clk 0:02:29.9]} 20. Qxe1 {[%clk 0:01:53.2]}
20... Re8 {[%clk 0:02:29.8]} 21. Qd2 {[%clk 0:01:53.7]} 21... h5 {[%clk
0:02:11.7]} 22. Nxf5 {[%clk 0:01:35.1]} 22... Qxf5 {[%clk 0:02:12.6]} 23. Na3
{[%clk 0:01:34.8]} 23... h4 {[%clk 0:02:11.5]} 24. Nc2 {[%clk 0:01:20.8]} 24...
Nh5 {[%clk 0:02:01.2]} 25. Nd4 {[%clk 0:01:17.7]} 25... Qf4 {[%clk 0:01:59.1]}
26. Qxf4 {[%clk 0:01:13.3]} 26... Nxf4 {[%clk 0:02:00]} 27. g3 {[%clk
0:01:04.8]} 27... Ne2+ {[%clk 0:01:45]} 28. Kf2 {[%clk 0:00:53.9]} 28... Nxc3
{[%clk 0:01:39.5]} 29. gxh4 {[%clk 0:00:44.4]} 29... b5 {[%clk 0:01:09.3]} 30.
a3 {[%clk 0:00:42.8]} 30... a5 {[%clk 0:01:08.9]} 31. Rg1 {[%clk 0:00:33]} 31...
b4 {[%clk 0:01:01.9]} 32. axb4 {[%clk 0:00:30.6]} 32... axb4 {[%clk 0:01:02.8]}
33. h5 {[%clk 0:00:29]} 33... Ra8 {[%clk 0:00:47.8]} 34. h6 {[%clk 0:00:24.3]}
34... g6 {[%clk 0:00:43.5]} 35. f4 {[%clk 0:00:20.6]} 35... Ra2+ {[%clk
0:00:42.4]} 36. Ke3 {[%clk 0:00:20.9]} 36... Rxh2 {[%clk 0:00:39.1]} 37. f5
{[%clk 0:00:21.4]} 37... Kh7 {[%clk 0:00:39]} 38. fxg6+ {[%clk 0:00:19.7]} 38...
fxg6 {[%clk 0:00:39.9]} 39. Nf3 {[%clk 0:00:18.8]} 39... Re2+ {[%clk 0:00:32.5]}
40. Kd4 {[%clk 0:00:17.8]} 40... Kxh6 {[%clk 0:00:31.6]} 41. Rh1+ {[%clk
0:00:15.3]} 41... Kg7 {[%clk 0:00:31.2]} 42. Ng5 {[%clk 0:00:15.4]} 42... Rd2+
{[%clk 0:00:26.1]} 43. Kc5 {[%clk 0:00:14.7]} 43... Ne4+ {[%clk 0:00:23.6]} 44.
Nxe4 {[%clk 0:00:15.1]} 44... dxe4 {[%clk 0:00:24.5]} 45. Kxb4 {[%clk
0:00:15.5]} 45... Kf6 {[%clk 0:00:24.6]} 46. Kc3 {[%clk 0:00:15.9]} 46... Rd3+
{[%clk 0:00:23.8]} 47. Kc2 {[%clk 0:00:15.3]} 47... g5 {[%clk 0:00:24.1]} 48.
Re1 {[%clk 0:00:14.7]} 48... Ke5 {[%clk 0:00:23.5]} 49. b4 {[%clk 0:00:13.8]}
49... g4 {[%clk 0:00:23.7]} 50. b5 {[%clk 0:00:14.1]} 50... Rd6 {[%clk 0:00:23]}
51. Rg1 {[%clk 0:00:14]} 51... Kf4 {[%clk 0:00:21.2]} 52. Kc3 {[%clk 0:00:13.3]}
52... g3 {[%clk 0:00:19.5]} 53. Kc4 {[%clk 0:00:13.6]} 53... Kf3 {[%clk
0:00:18.9]} 54. Ra1 {[%clk 0:00:12.3]} 54... g2 {[%clk 0:00:17.8]} 55. Kc5
{[%clk 0:00:10.5]} 55... Rd8 {[%clk 0:00:18]} 56. Ra3+ {[%clk 0:00:09.5]} 56...
e3 {[%clk 0:00:18.1]} 57. Ra1 {[%clk 0:00:09.3]} 57... e2 {[%clk 0:00:18.5]} 58.
b6 {[%clk 0:00:09.8]} 58... Rd1 {[%clk 0:00:17.3]} 0-1

[Event "*** Titled Tuesday Blitz"]
[Site "Chess.com"]
[Date "2020.05.19"]
[Round "7"]
[White "BanjoKazooieN64"]
[Black "TheoSlade"]
[Result "1-0"]
[WhiteElo "2545"]
[BlackElo "2397"]
[TimeControl "180+1"]
[EndTime "13:21:08 PDT"]
[Termination "BanjoKazooieN64 won by resignation"]

1. e4 {[%clk 0:02:52.3]} 1... e5 {[%clk 0:03:00.5]} 2. Nf3 {[%clk 0:02:52]} 2...
Nc6 {[%clk 0:03:01]} 3. Nc3 {[%clk 0:02:52.5]} 3... Nf6 {[%clk 0:03:01.4]} 4. d4
{[%clk 0:02:52.8]} 4... exd4 {[%clk 0:03:01.5]} 5. Nxd4 {[%clk 0:02:53.5]} 5...
Bb4 {[%clk 0:03:02.1]} 6. Nxc6 {[%clk 0:02:53.8]} 6... bxc6 {[%clk 0:03:03]} 7.
Bd3 {[%clk 0:02:54.1]} 7... d5 {[%clk 0:03:03.4]} 8. exd5 {[%clk 0:02:54.7]}
8... O-O {[%clk 0:03:04]} 9. O-O {[%clk 0:02:55.4]} 9... cxd5 {[%clk 0:03:04.5]}
10. Bg5 {[%clk 0:02:55.1]} 10... c6 {[%clk 0:03:04.3]} 11. Qf3 {[%clk
0:02:55.3]} 11... Bd6 {[%clk 0:03:04.5]} 12. Rfe1 {[%clk 0:02:53.8]} 12... Rb8
{[%clk 0:03:04.3]} 13. Rab1 {[%clk 0:02:53.6]} 13... h6 {[%clk 0:03:02.8]} 14.
Bxf6 {[%clk 0:02:53.8]} 14... Qxf6 {[%clk 0:03:03.1]} 15. Qxf6 {[%clk 0:02:54]}
15... gxf6 {[%clk 0:03:04]} 16. Ne2 {[%clk 0:02:54.4]} 16... Re8 {[%clk
0:03:02.2]} 17. b3 {[%clk 0:02:53]} 17... Bd7 {[%clk 0:02:59.7]} 18. Ng3 {[%clk
0:02:50.5]} 18... Rxe1+ {[%clk 0:02:58.2]} 19. Rxe1 {[%clk 0:02:50.1]} 19... Re8
{[%clk 0:02:50.6]} 20. Rxe8+ {[%clk 0:02:50]} 20... Bxe8 {[%clk 0:02:51.3]} 21.
Nf5 {[%clk 0:02:50]} 21... Bf8 {[%clk 0:02:50.1]} 22. f4 {[%clk 0:02:37.9]}
22... Bd7 {[%clk 0:02:48.3]} 23. g3 {[%clk 0:02:36.5]} 23... Bxf5 {[%clk
0:02:44.4]} 24. Bxf5 {[%clk 0:02:36.2]} 24... Bc5+ {[%clk 0:02:39.8]} 25. Kf1
{[%clk 0:02:36.6]} 25... Bb6 {[%clk 0:02:34.1]} 26. Bd7 {[%clk 0:02:36.8]} 26...
c5 {[%clk 0:02:34]} 27. Bc6 {[%clk 0:02:37.2]} 27... d4 {[%clk 0:02:34.3]} 28.
Ke2 {[%clk 0:02:37.5]} 28... Kf8 {[%clk 0:02:30.7]} 29. Kd3 {[%clk 0:02:37.6]}
29... Ke7 {[%clk 0:02:30.6]} 30. Ke4 {[%clk 0:02:38]} 30... Ke6 {[%clk
0:02:22.8]} 31. Bd5+ {[%clk 0:02:37.1]} 31... Ke7 {[%clk 0:02:23.1]} 32. Kf5
{[%clk 0:02:36.3]} 32... Ba5 {[%clk 0:02:21.3]} 33. Bf3 {[%clk 0:02:19.9]} 33...
Be1 {[%clk 0:02:20.2]} 34. Ke4 {[%clk 0:02:19]} 34... Kd6 {[%clk 0:02:16.3]} 35.
Bh5 {[%clk 0:02:17]} 35... Ke6 {[%clk 0:02:12.3]} 36. f5+ {[%clk 0:02:17.1]}
36... Ke7 {[%clk 0:01:54.3]} 37. Kd5 {[%clk 0:02:17.3]} 37... Bb4 {[%clk
0:01:54.4]} 38. Kc6 {[%clk 0:02:12.2]} 38... a5 {[%clk 0:01:41.3]} 39. Kb5
{[%clk 0:02:11.5]} 39... Ke8 {[%clk 0:01:37.8]} 40. Ka4 {[%clk 0:02:11.5]} 40...
Ke7 {[%clk 0:01:36]} 41. a3 {[%clk 0:02:11.8]} 41... Bc3 {[%clk 0:01:26.8]} 42.
Kb5 {[%clk 0:02:11.9]} 42... Kd6 {[%clk 0:01:21.4]} 43. Bxf7 {[%clk 0:02:10.7]}
43... Bb2 {[%clk 0:01:19.2]} 44. a4 {[%clk 0:02:00.4]} 44... Bc3 {[%clk
0:01:19.3]} 45. Bc4 {[%clk 0:01:57.5]} 45... Bb4 {[%clk 0:01:18.4]} 46. Bd3
{[%clk 0:01:57.8]} 46... Ke5 {[%clk 0:01:18.2]} 47. Kc4 {[%clk 0:01:57.2]} 47...
Kd6 {[%clk 0:01:13.6]} 48. Be4 {[%clk 0:01:56.3]} 48... Be1 {[%clk 0:01:11.4]}
49. Bg2 {[%clk 0:01:53.7]} 49... Bf2 {[%clk 0:01:08.9]} 50. Bf1 {[%clk
0:01:46.2]} 50... Be1 {[%clk 0:01:07.8]} 51. Be2 {[%clk 0:01:43.9]} 51... Bf2
{[%clk 0:01:07.7]} 52. Bd3 {[%clk 0:01:43.9]} 52... Be1 {[%clk 0:01:07.2]} 53.
Kb5 {[%clk 0:01:44.3]} 53... Bd2 {[%clk 0:01:05.6]} 54. Kb6 {[%clk 0:01:43.5]}
54... Kd5 {[%clk 0:01:01.2]} 55. Bc4+ {[%clk 0:01:41]} 55... Kd6 {[%clk
0:01:01.7]} 56. Be6 {[%clk 0:01:40]} 56... Be1 {[%clk 0:01:01.6]} 57. Kb5 {[%clk
0:01:39.6]} 57... Bd2 {[%clk 0:01:00.9]} 58. Kb6 {[%clk 0:01:40.1]} 58... Be1
{[%clk 0:01:00.9]} 59. Kb7 {[%clk 0:01:40.7]} 59... Bf2 {[%clk 0:00:56.6]} 60.
Kc8 {[%clk 0:01:39.9]} 60... Bg1 {[%clk 0:00:56.9]} 61. h3 {[%clk 0:01:39.9]}
61... Bf2 {[%clk 0:00:57.3]} 62. g4 {[%clk 0:01:40.2]} 62... Ke5 {[%clk
0:00:56.6]} 63. Kd7 {[%clk 0:01:38.6]} 63... Be3 {[%clk 0:00:49.3]} 64. Kc6
{[%clk 0:01:37.6]} 64... Kf4 {[%clk 0:00:32.6]} 65. Kb5 {[%clk 0:01:36.6]} 65...
Bd2 {[%clk 0:00:31.7]} 66. Kxc5 {[%clk 0:01:36.2]} 66... Bc3 {[%clk 0:00:31.9]}
67. b4 {[%clk 0:01:28.2]} 67... axb4 {[%clk 0:00:17.9]} 68. a5 {[%clk
0:01:28.3]} 68... b3 {[%clk 0:00:16.5]} 69. Bxb3 {[%clk 0:01:26.9]} 69... Bxa5
{[%clk 0:00:16.4]} 70. Kxd4 {[%clk 0:01:27.3]} 70... Kg3 {[%clk 0:00:15.9]} 71.
Bf7 {[%clk 0:01:26]} 71... Kxh3 {[%clk 0:00:15.7]} 72. Bh5 {[%clk 0:01:26.2]}
72... Kg3 {[%clk 0:00:15.6]} 73. Kd5 {[%clk 0:01:26.4]} 73... Kf4 {[%clk
0:00:15.2]} 74. c4 {[%clk 0:01:26.5]} 74... Bc7 {[%clk 0:00:11.2]} 75. c5 {[%clk
0:01:25.4]} 75... Bb8 {[%clk 0:00:11]} 76. c6 {[%clk 0:01:22.9]} 76... Ke3
{[%clk 0:00:08.7]} 77. Ke6 {[%clk 0:01:22.4]} 77... Be5 {[%clk 0:00:08.4]} 78.
Kd7 {[%clk 0:01:22.4]} 78... Kf4 {[%clk 0:00:06.3]} 79. c7 {[%clk 0:01:22.7]}
79... Bxc7 {[%clk 0:00:06.8]} 80. Kxc7 {[%clk 0:01:23.1]} 80... Ke5 {[%clk
0:00:06.6]} 81. Kd7 {[%clk 0:01:23.4]} 81... Kf4 {[%clk 0:00:05.8]} 82. Ke6
{[%clk 0:01:23.3]} 82... Kg5 {[%clk 0:00:06.2]} 83. Kf7 {[%clk 0:01:23.1]} 83...
Kf4 {[%clk 0:00:06.7]} 84. Kxf6 {[%clk 0:01:23.5]} 84... Ke4 {[%clk 0:00:05.5]}
85. Kg6 {[%clk 0:01:23.3]} 1-0

[Event "*** Titled Tuesday Blitz"]
[Site "Chess.com"]
[Date "2020.05.19"]
[Round "7"]
[White "mirandamikadze"]
[Black "ecwinslow"]
[Result "1-0"]
[WhiteElo "2007"]
[BlackElo "2195"]
[TimeControl "180+1"]
[EndTime "13:21:08 PDT"]
[Termination "mirandamikadze won on time"]

1. e4 {[%clk 0:03:00.9]} 1... c5 {[%clk 0:02:59.1]} 2. c3 {[%clk 0:03:00.8]}
2... Nf6 {[%clk 0:02:57.7]} 3. e5 {[%clk 0:03:00.6]} 3... Nd5 {[%clk 0:02:58.3]}
4. d4 {[%clk 0:03:01.1]} 4... cxd4 {[%clk 0:02:58.2]} 5. cxd4 {[%clk 0:03:01.6]}
5... d6 {[%clk 0:02:58.1]} 6. Nf3 {[%clk 0:03:02]} 6... Nc6 {[%clk 0:02:56.9]}
7. h3 {[%clk 0:03:00]} 7... Bf5 {[%clk 0:02:44.2]} 8. Bd3 {[%clk 0:02:55.7]}
8... Bxd3 {[%clk 0:02:38.1]} 9. Qxd3 {[%clk 0:02:55.7]} 9... e6 {[%clk
0:02:28.9]} 10. O-O {[%clk 0:02:54.7]} 10... dxe5 {[%clk 0:02:22.6]} 11. dxe5
{[%clk 0:02:54.1]} 11... Ndb4 {[%clk 0:02:20.2]} 12. Qb5 {[%clk 0:02:42.9]}
12... a6 {[%clk 0:02:16.5]} 13. Qe2 {[%clk 0:02:17.2]} 13... Qd3 {[%clk
0:02:07.7]} 14. Re1 {[%clk 0:02:09.1]} 14... O-O-O {[%clk 0:02:03.7]} 15. Na3
{[%clk 0:01:59.6]} 15... Qxe2 {[%clk 0:01:46.7]} 16. Rxe2 {[%clk 0:01:56.2]}
16... Rd1+ {[%clk 0:01:45.9]} 17. Kh2 {[%clk 0:01:54.4]} 17... Nd3 {[%clk
0:01:31.6]} 18. Rc2 {[%clk 0:01:49.7]} 18... Bxa3 {[%clk 0:01:09.2]} 19. bxa3
{[%clk 0:01:48.4]} 19... Rd8 {[%clk 0:01:03.1]} 20. Kg3 {[%clk 0:01:38.2]} 20...
Kb8 {[%clk 0:00:58.7]} 21. Rb1 {[%clk 0:01:36.4]} 21... Ka8 {[%clk 0:00:38.1]}
22. Rc3 {[%clk 0:01:29.9]} 22... Ndxe5 {[%clk 0:00:34.4]} 23. Nxe5 {[%clk
0:01:28.3]} 23... Nxe5 {[%clk 0:00:33.2]} 24. Rbb3 {[%clk 0:01:26.4]} 24... R1d7
{[%clk 0:00:31.1]} 25. Bf4 {[%clk 0:01:24.2]} 25... Nc6 {[%clk 0:00:27.5]} 26.
Be3 {[%clk 0:01:23.1]} 26... e5 {[%clk 0:00:26.4]} 27. Rb6 {[%clk 0:01:18.1]}
27... Rd6 {[%clk 0:00:21.6]} 28. Bc5 {[%clk 0:01:13.8]} 28... Rd3+ {[%clk
0:00:21.3]} 29. Rxd3 {[%clk 0:01:13.3]} 29... Rxd3+ {[%clk 0:00:21.7]} 30. f3
{[%clk 0:01:13.9]} 30... f5 {[%clk 0:00:20.2]} 31. Rb2 {[%clk 0:01:11.2]} 31...
g5 {[%clk 0:00:18.5]} 32. h4 {[%clk 0:01:10.4]} 32... h6 {[%clk 0:00:18]} 33.
hxg5 {[%clk 0:01:09.8]} 33... hxg5 {[%clk 0:00:17.2]} 34. Kf2 {[%clk 0:01:08.6]}
34... Kb8 {[%clk 0:00:16.7]} 35. a4 {[%clk 0:01:06]} 35... Kc7 {[%clk
0:00:14.9]} 36. Bb6+ {[%clk 0:01:05.7]} 36... Kc8 {[%clk 0:00:15.1]} 37. a5
{[%clk 0:01:05.5]} 37... e4 {[%clk 0:00:12.7]} 38. fxe4 {[%clk 0:01:04.7]} 38...
fxe4 {[%clk 0:00:13.3]} 39. Re2 {[%clk 0:01:04.4]} 39... Ra3 {[%clk 0:00:11.5]}
40. Rxe4 {[%clk 0:01:00.2]} 40... Rxa2+ {[%clk 0:00:11.1]} 41. Kg3 {[%clk
0:01:00.7]} 41... Nxa5 {[%clk 0:00:10.9]} 42. Re5 {[%clk 0:00:39.2]} 42... Nc6
{[%clk 0:00:09.8]} 43. Rxg5 {[%clk 0:00:38.5]} 43... Rb2 {[%clk 0:00:09.4]} 44.
Bc5 {[%clk 0:00:31.4]} 44... b5 {[%clk 0:00:08.8]} 45. Rg6 {[%clk 0:00:28.2]}
45... Kd7 {[%clk 0:00:08.3]} 46. Rd6+ {[%clk 0:00:27.8]} 46... Kc7 {[%clk
0:00:08.5]} 47. Kh3 {[%clk 0:00:27]} 47... a5 {[%clk 0:00:07.8]} 48. g4 {[%clk
0:00:25.9]} 48... b4 {[%clk 0:00:07.3]} 49. g5 {[%clk 0:00:25.3]} 49... Ne5
{[%clk 0:00:05.1]} 50. Re6 {[%clk 0:00:23.2]} 50... Rb3+ {[%clk 0:00:03.3]} 51.
Kh4 {[%clk 0:00:20.2]} 51... Nd7 {[%clk 0:00:03.2]} 52. Bd6+ {[%clk 0:00:19.2]}
52... Kd8 {[%clk 0:00:02.3]} 53. Rh6 {[%clk 0:00:17.1]} 53... Re3 {[%clk
0:00:01]} 54. Rh8+ {[%clk 0:00:16.5]} 1-0

[Event "*** Titled Tuesday Blitz"]
[Site "Chess.com"]
[Date "2020.05.19"]
[Round "7"]
[White "karinachess1"]
[Black "Manukyan_Artak"]
[Result "1-0"]
[WhiteElo "2495"]
[BlackElo "2314"]
[TimeControl "180+1"]
[EndTime "13:21:09 PDT"]
[Termination "karinachess1 won on time"]

1. Nf3 {[%clk 0:03:00.9]} 1... d5 {[%clk 0:02:58.5]} 2. d4 {[%clk 0:02:58]} 2...
c6 {[%clk 0:02:58.7]} 3. c4 {[%clk 0:02:57.5]} 3... Nf6 {[%clk 0:02:58]} 4. e3
{[%clk 0:02:55.4]} 4... Bg4 {[%clk 0:02:57.2]} 5. h3 {[%clk 0:02:48.7]} 5... Bh5
{[%clk 0:02:56.5]} 6. Nbd2 {[%clk 0:02:37.5]} 6... Nbd7 {[%clk 0:02:53.2]} 7.
Be2 {[%clk 0:02:33.9]} 7... e6 {[%clk 0:02:52.9]} 8. b3 {[%clk 0:02:30.4]} 8...
a5 {[%clk 0:02:51.5]} 9. a4 {[%clk 0:02:29.2]} 9... Bb4 {[%clk 0:02:50.4]} 10.
O-O {[%clk 0:02:28.4]} 10... O-O {[%clk 0:02:47.7]} 11. Bb2 {[%clk 0:02:27]}
11... Qe7 {[%clk 0:02:23.8]} 12. Qc2 {[%clk 0:02:25.6]} 12... Bg6 {[%clk
0:02:23.2]} 13. Bd3 {[%clk 0:02:25]} 13... Bxd3 {[%clk 0:02:23.2]} 14. Qxd3
{[%clk 0:02:25.9]} 14... Rad8 {[%clk 0:02:20.5]} 15. Rfd1 {[%clk 0:02:23.1]}
15... Rfe8 {[%clk 0:02:16.1]} 16. Qe2 {[%clk 0:02:16]} 16... Nf8 {[%clk
0:02:10.7]} 17. e4 {[%clk 0:02:03.6]} 17... dxe4 {[%clk 0:02:09.9]} 18. Nxe4
{[%clk 0:02:03.4]} 18... Nxe4 {[%clk 0:02:10.1]} 19. Qxe4 {[%clk 0:02:04.3]}
19... Ng6 {[%clk 0:02:08.9]} 20. g3 {[%clk 0:01:47.4]} 20... Qf6 {[%clk
0:02:01.2]} 21. h4 {[%clk 0:01:43]} 21... h6 {[%clk 0:01:50.6]} 22. Rab1 {[%clk
0:01:35.9]} 22... Qe7 {[%clk 0:01:47.7]} 23. Rd3 {[%clk 0:01:15.4]} 23... Qc7
{[%clk 0:01:40.6]} 24. Qg4 {[%clk 0:01:08.3]} 24... Bf8 {[%clk 0:01:29.2]} 25.
Rbd1 {[%clk 0:01:00]} 25... Ne7 {[%clk 0:01:17.5]} 26. Ne5 {[%clk 0:00:58.2]}
26... Nf5 {[%clk 0:01:17.4]} 27. Qf3 {[%clk 0:00:45.4]} 27... f6 {[%clk
0:00:51.5]} 28. Ng6 {[%clk 0:00:43.2]} 28... Ne7 {[%clk 0:00:50.8]} 29. Nf4
{[%clk 0:00:27.2]} 29... Nf5 {[%clk 0:00:42.4]} 30. h5 {[%clk 0:00:27.4]} 30...
Qf7 {[%clk 0:00:40.1]} 31. Qg4 {[%clk 0:00:26]} 31... Bd6 {[%clk 0:00:36.2]} 32.
Bc1 {[%clk 0:00:23.1]} 32... Bxf4 {[%clk 0:00:35.5]} 33. Bxf4 {[%clk 0:00:24]}
33... Rd7 {[%clk 0:00:35.1]} 34. d5 {[%clk 0:00:20.5]} 34... e5 {[%clk
0:00:24.1]} 35. Qxf5 {[%clk 0:00:20]} 35... exf4 {[%clk 0:00:24.3]} 36. Qxf4
{[%clk 0:00:19.9]} 36... cxd5 {[%clk 0:00:18.2]} 37. Rxd5 {[%clk 0:00:20.8]}
37... Rxd5 {[%clk 0:00:18.2]} 38. Rxd5 {[%clk 0:00:21.2]} 38... Qe6 {[%clk
0:00:17.9]} 39. Kg2 {[%clk 0:00:20.5]} 39... Qc6 {[%clk 0:00:17.1]} 40. Qd4
{[%clk 0:00:20.3]} 40... Re5 {[%clk 0:00:14.8]} 41. Kh2 {[%clk 0:00:20.5]} 41...
Qe6 {[%clk 0:00:11.1]} 42. Rd8+ {[%clk 0:00:20.4]} 42... Kf7 {[%clk 0:00:09.3]}
43. Qd7+ {[%clk 0:00:17.7]} 43... Qxd7 {[%clk 0:00:09.2]} 44. Rxd7+ {[%clk
0:00:18.1]} 44... Ke6 {[%clk 0:00:09.4]} 45. Rxb7 {[%clk 0:00:18.2]} 45... Rxh5+
{[%clk 0:00:09.6]} 46. Kg2 {[%clk 0:00:18]} 46... g6 {[%clk 0:00:07.4]} 47. Rb5
{[%clk 0:00:18.2]} 47... Re5 {[%clk 0:00:05.5]} 48. Rxe5+ {[%clk 0:00:17.2]}
48... Kxe5 {[%clk 0:00:04.1]} 49. Kf3 {[%clk 0:00:17.2]} 49... Kd4 {[%clk
0:00:03.9]} 50. Kf4 {[%clk 0:00:15]} 50... f5 {[%clk 0:00:01.8]} 51. f3 {[%clk
0:00:13.8]} 1-0

[Event "*** Titled Tuesday Blitz"]
[Site "Chess.com"]
[Date "2020.05.19"]
[Round "7"]
[White "SaqoChess_Twitch"]
[Black "Machidon"]
[Result "1-0"]
[WhiteElo "2405"]
[BlackElo "2520"]
[TimeControl "180+1"]
[EndTime "13:21:11 PDT"]
[Termination "SaqoChess_Twitch won on time"]

1. d4 {[%clk 0:03:00.9]} 1... d5 {[%clk 0:02:59.5]} 2. c4 {[%clk 0:03:01.8]}
2... c6 {[%clk 0:02:59.7]} 3. Nc3 {[%clk 0:03:02.1]} 3... Nf6 {[%clk 0:03:00]}
4. e3 {[%clk 0:03:02.7]} 4... e6 {[%clk 0:02:59.5]} 5. Nf3 {[%clk 0:03:02.2]}
5... Nbd7 {[%clk 0:02:59.9]} 6. Bd3 {[%clk 0:03:01.1]} 6... Be7 {[%clk
0:03:00.3]} 7. O-O {[%clk 0:02:57.7]} 7... O-O {[%clk 0:03:00.1]} 8. e4 {[%clk
0:02:57.9]} 8... dxe4 {[%clk 0:03:00]} 9. Nxe4 {[%clk 0:02:58.8]} 9... b6 {[%clk
0:03:00.6]} 10. b3 {[%clk 0:02:53.4]} 10... Bb7 {[%clk 0:03:00.2]} 11. Bb2
{[%clk 0:02:53.2]} 11... c5 {[%clk 0:03:00.7]} 12. dxc5 {[%clk 0:02:52.7]} 12...
Nxc5 {[%clk 0:03:01.6]} 13. Nxc5 {[%clk 0:02:49.7]} 13... Bxc5 {[%clk
0:03:02.5]} 14. Be2 {[%clk 0:02:48.8]} 14... Qe7 {[%clk 0:02:53.2]} 15. Qd2
{[%clk 0:02:48.7]} 15... Rfd8 {[%clk 0:02:48.9]} 16. Qg5 {[%clk 0:02:48.5]}
16... Ba3 {[%clk 0:02:43.2]} 17. Bc3 {[%clk 0:02:37.9]} 17... Bb4 {[%clk
0:02:37]} 18. Bb2 {[%clk 0:02:24.9]} 18... h6 {[%clk 0:02:34.8]} 19. Qg3 {[%clk
0:02:19.2]} 19... Ba3 {[%clk 0:02:31.8]} 20. Bc3 {[%clk 0:02:16.5]} 20... Rd7
{[%clk 0:02:15]} 21. Ne5 {[%clk 0:02:15.7]} 21... Ne4 {[%clk 0:02:13.7]} 22. Qe3
{[%clk 0:02:04]} 22... Bc5 {[%clk 0:02:10.7]} 23. Qh3 {[%clk 0:01:58.7]} 23...
Nxc3 {[%clk 0:02:09]} 24. Qxc3 {[%clk 0:01:56.6]} 24... Bd4 {[%clk 0:02:07.9]}
25. Qg3 {[%clk 0:01:56.5]} 25... Bxa1 {[%clk 0:01:39.2]} 26. Nxd7 {[%clk
0:01:54.5]} 26... Bd4 {[%clk 0:01:32.4]} 27. Ne5 {[%clk 0:01:52.2]} 27... Qg5
{[%clk 0:01:25.2]} 28. Nf3 {[%clk 0:01:48.9]} 28... Qxg3 {[%clk 0:01:20.4]} 29.
hxg3 {[%clk 0:01:49.8]} 29... Bf6 {[%clk 0:01:18.9]} 30. Rd1 {[%clk 0:01:49.3]}
30... Rd8 {[%clk 0:01:17.4]} 31. Rxd8+ {[%clk 0:01:48.7]} 31... Bxd8 {[%clk
0:01:18.3]} 32. Nd4 {[%clk 0:01:49.1]} 32... e5 {[%clk 0:01:00.8]} 33. Nb5
{[%clk 0:01:48.5]} 33... a6 {[%clk 0:00:58]} 34. Nd6 {[%clk 0:01:48.3]} 34...
Bc6 {[%clk 0:00:55.5]} 35. Bf3 {[%clk 0:01:48.8]} 35... Bd7 {[%clk 0:00:51.1]}
36. b4 {[%clk 0:01:38.8]} 36... Be7 {[%clk 0:00:48.6]} 37. c5 {[%clk 0:01:34.6]}
37... Bxd6 {[%clk 0:00:25.8]} 38. cxd6 {[%clk 0:01:33.9]} 38... Kf8 {[%clk
0:00:26]} 39. a3 {[%clk 0:01:23.9]} 39... Be6 {[%clk 0:00:19]} 40. Bb7 {[%clk
0:01:16.6]} 40... a5 {[%clk 0:00:18.5]} 41. b5 {[%clk 0:01:16.8]} 41... Ke8
{[%clk 0:00:17.6]} 42. Bc6+ {[%clk 0:01:16.8]} 42... Kd8 {[%clk 0:00:14.9]} 43.
f3 {[%clk 0:01:10.3]} 43... Bd7 {[%clk 0:00:08.2]} 44. Kf2 {[%clk 0:01:09.2]}
44... f5 {[%clk 0:00:06.1]} 45. Ke3 {[%clk 0:01:09.2]} 45... Be6 {[%clk
0:00:04.7]} 46. Kd3 {[%clk 0:01:04.5]} 46... g5 {[%clk 0:00:04.1]} 47. Ke3
{[%clk 0:01:02.9]} 47... h5 {[%clk 0:00:04.4]} 48. f4 {[%clk 0:01:02.7]} 48...
exf4+ {[%clk 0:00:04.4]} 49. gxf4 {[%clk 0:01:02.4]} 49... g4 {[%clk 0:00:05]}
50. g3 {[%clk 0:01:02.2]} 50... Bd7 {[%clk 0:00:04.3]} 51. Kd4 {[%clk
0:01:00.7]} 51... Be6 {[%clk 0:00:02.8]} 52. Ke5 {[%clk 0:00:50.3]} 52... Bc8
{[%clk 0:00:02.1]} 53. Kf6 {[%clk 0:00:50.3]} 53... h4 {[%clk 0:00:01.8]} 54.
gxh4 {[%clk 0:00:50.1]} 54... Bd7 {[%clk 0:00:02.7]} 55. h5 {[%clk 0:00:50]}
55... Bxc6 {[%clk 0:00:02.3]} 56. bxc6 {[%clk 0:00:50.9]} 56... g3 {[%clk
0:00:02.8]} 57. h6 {[%clk 0:00:51]} 57... g2 {[%clk 0:00:03.7]} 58. h7 {[%clk
0:00:51.4]} 58... g1=Q {[%clk 0:00:04.6]} 59. h8=Q+ {[%clk 0:00:51.7]} 1-0